{"text_format":"3","workbook":"xlsx","n_sheets":1,"sheets":["Table 1"],"read":"whole","date_system":"1900"}

{"sheet":"Table 1","index":0,"n_rows":90,"n_cols":5,"rows_kept":90,"merged":[[1,1,1,4],[4,0,4,4],[15,0,15,4],[25,0,25,4],[33,0,33,4],[42,0,42,4],[62,0,62,4],[69,2,69,4]]}
[]
[null,"PRESUPUESTO: 1ª FASE CONTROL PIEZOMETRICO Y AUTOMATIZACION LECTURA PENDULOS EN ARRIARAN"]
[]
["Partida","Uds.","Concepto","Prec. Unit","Importe"]
["Capitulo 1.- Perforación e inyección"]
[]
[11,{"v":1,"d":"1.00"},"Partida alzada para puesta en obra de equipo de perforación e inyección.",{"v":3600,"d":"3,600.00 €"},{"$f":"B7*D7","v":{"v":3600,"d":"3,600.0 €"}}]
[12,{"v":16,"d":"16.00"},"Unidad de emboquillamiento en taladro.",{"v":45,"d":"45.00 €"},{"$f":"B8*D8","v":{"v":720,"d":"720.0 €"}}]
[13,{"v":97.6,"d":"97.60"},"Metro de perforación en Hormigón hasta 20 m Ø55mm, a rotación y con extracción de testigo",{"v":92,"d":"92.00 €"},{"v":8979.199999999999,"d":"8,979.2 €"}]
[14,{"v":16,"d":"16.00"},"Metro de perforación en terreno hasta 20 m Ø55mm, a rotación y con extracción de testigo",{"v":102,"d":"102.00 €"},{"v":1632,"d":"1,632.0 €"}]
[15,{"v":113.6,"d":"113.60"},"Ml de inyección de taladro con lechada de cemento, incluyendo alquiler de equipos y lechada, hasta el 125% del volumen normal del taladro.",{"v":6.5,"d":"6.50 €"},{"v":738.4,"d":"738.4 €"}]
[16,{"v":0.5,"d":"0.50"},"Suplemento por tonelada de lechada en exceso de inyección sobre 125% del volumen normal.","1.650,00 €",{"v":825,"d":"825.0 €"}]
[]
[null,null,"Total Capítulo 1",null,{"$f":"SUM(E7:E13)","v":{"v":16494.6,"d":"16,494.6 €"}}]
[]
["Capitulo 2.- Piezómetros"]
[]
[21,{"v":16,"d":"16.00"},"Piezómetro de Cuerda vibrante de bajo cambio de volumen, con termorresistencia incorporada y filtro cerámico para medida directa. Varios rangos. (siete secciones de control en contacto hormigón - roca, con un piezómetro en taladro vertical por aguas arriba y otro inclinado hacia aguas abajo; dos piezómetros más en galería transversal para captar pérdida de carga)",{"v":505,"d":"505.00 €"},{"$f":"B18*D18","v":{"v":8080,"d":"8,080.0 €"}}]
[22,{"v":1480,"d":"1480.00"},"Ml de cable de cuatro conductores, con malla, adecuado para cablear instrumentación de ingeniería civil.",{"v":1.65,"d":"1.65 €"},{"$f":"B19*D19","v":{"v":2442,"d":"2,442.0 €"}}]
[23,{"v":70,"d":"70.00"},"Metro de tubería de PVC para canalización de cables (diámetro 25 mm)",{"v":4.1,"d":"4.10 €"},{"v":287,"d":"287.0 €"}]
[24,{"v":120,"d":"120.00"},"Metro de tubería de PVC para canalización de cables (diámetro 32 mm)",{"v":4.95,"d":"4.95 €"},{"v":594,"d":"594.0 €"}]
[25,{"v":190,"d":"190.00"},"Metro de tubería de PVC para canalización de cables (diámetro 40 mm)",{"v":6.02,"d":"6.02 €"},{"v":1143.8,"d":"1,143.8 €"}]
[]
[null,null,"Total Capítulo 2",null,{"$f":"SUM(E16:E23)","v":{"v":12546.8,"d":"12,546.8 €"}}]
[]
["Capítulo 3.- Automatización péndulo inverso y directo"]
[]
[31,{"v":1,"d":"1.00"},"Sistema óptico CCD para automatización de dos péndulos, con realización de lecturas sin contacto con el hilo. Formado por 4 sensores, uno para cada coordenada a medir, controlados por microprocesador. Con presentación de lecturas en una pantalla local, memoria para almacenamiento de datos y salida de datos RS-232 y RS-485, para conexión a sistema automático.",{"v":4755.5,"d":"4,755.50 €"},{"$f":"B28*D28","v":{"v":4755.5,"d":"4,755.5 €"}}]
[32,{"v":1,"d":"1.00"},"Sistema óptico CCD para automatización de péndulos, con realización de lecturas sin contacto con el hilo. Formado por 2 sensores, uno para cada coordenada, controlados por microprocesador. Con presentación de lecturas en una pantalla local, memoria para almacenamiento de datos y salida de datos RS-232 y RS-485, para conexión a sistema automático.",{"v":3689.5,"d":"3,689.50 €"},{"$f":"B29*D29","v":{"v":3689.5,"d":"3,689.5 €"}}]
[33,{"v":50,"d":"50.00"},"M.l. de cable 3*1,5 mm para alimentación de unidades a 220 VAC.",{"v":1.58,"d":"1.58 €"},{"v":79,"d":"79.0 €"}]
[]
[null,null,"Total Capítulo 3",null,{"$f":"SUM(E28:E31)","v":{"v":8524,"d":"8,524.0 €"}}]
[]
["4.- Instalación y puesta en marcha"]
[]
[41,{"v":1,"d":"1.00"},"Partida íntegra para Análisis y redacción de informes, proyectos y estudios específicos al inicio, en el transcurso y a la finalización  de los trabajos",{"v":550,"d":"550.00 €"},{"$f":"B36*D36","v":{"v":550,"d":"550.0 €"}}]
[42,{"v":1,"d":"1.00"},"Partida íntegra para Desplazamiento, ejecución de taladros y montaje de los equipos en obra por equipo técnico compuesto por montadores especialistas en perforación, inyección, auscultación y automatizaciones. Tiempo total estimado 12 semanas",{"v":5530,"d":"5,530.00 €"},{"$f":"B37*D37","v":{"v":5530,"d":"5,530.0 €"}}]
[43,{"v":1,"d":"1.00"},"Partida íntegra para Supervisión, coordinación y dirección de equipos obra compuesto por técnico (Ingeniero de Caminos, ,o similar) especialista en auscultación y automatizaciones., incluso elaboración de informe final",{"v":1198.2,"d":"1,198.20 €"},{"v":1198.2,"d":"1,198.2 €"}]
[44,{"v":1,"d":"1.00"},"Partida íntegra paraTraslados,dietas y kilometraje",{"v":1025,"d":"1,025.00 €"},{"v":1025,"d":"1,025.0 €"}]
[]
[null,null,"Total Capítulo 4",null,{"$f":"SUM(E36:E40)","v":{"v":8303.2,"d":"8,303.2 €"}}]
[]
["Capítulo 5.- Gestión de Residuos"]
[]
[45,{"v":14.1,"d":"14.10"},"Coste de gestión de Tn de Residuo con CÓDIGO LER 17.01.01 HORMIGÓN (Orden MAM/304/2002) tratada en planta por gestor autorizado por el Departamento de Medio Ambiente de la CAPV, de acuerdo con el Decreto 112/2012 de, 26 de junio, recogidas en contenedores de distintos formatos. Incluye costes administrativos y documentación justificativa de IKS eem según Decreto 183/2012, de 25 de septiembre (DSC, Documentos de Seguimiento y Control), así como otros certificados.",{"v":8,"d":"8.00 €"},{"$f":"D45*B45","v":{"v":112.8,"d":"112.8 €"}}]
[46,{"v":0.2,"d":"0.20"},"Coste de gestión de Tn de Residuo con CÓDIGO LER 17.01.03 TEJAS Y MATERIALES CERAMICOS (Orden MAM/304/2002) tratada en planta por gestor autorizado por el Departamento de Medio Ambiente de la CAPV, de acuerdo con el Decreto 112/2012 de, 26 de junio, recogidas en contenedores de distintos formatos. Incluye costes administrativos y documentación justificativa de IKS eem según Decreto 183/2012, de 25 de septiembre (DSC, Documentos de Seguimiento y Control), así como otros certificados.",{"v":8,"d":"8.00 €"},{"v":1.6,"d":"1.6 €"}]
[47,{"v":0.5,"d":"0.50"},"Coste de gestión de Tn de Residuo con CÓDIGO LER 17.02.01 MADERA LIMPIA O NATURAL SIN TRATAMIENTOS (Orden MAM/304/2002) tratada en planta por gestor autorizado por el Departamento de Medio Ambiente de la CAPV, de acuerdo con el Decreto 112/2012 de, 26 de junio, recogidas en contenedores de distintos formatos. Incluye costes administrativos y documentación justificativa de IKS eem según Decreto 183/2012, de 25 de septiembre (DSC, Documentos de Seguimiento y Control), así como otros certificados.",{"v":20,"d":"20.00 €"},{"v":10,"d":"10.0 €"}]
[48,{"v":0.1,"d":"0.10"},"Coste de gestión de Tn de Residuo con CÓDIGO LER 17.02.02 VIDRIO (Orden MAM/304/2002) tratada en planta por gestor autorizado por el Departamento de Medio Ambiente de la CAPV, de acuerdo con el Decreto 112/2012 de, 26 de junio, recogidas en contenedores de distintos formatos. Incluye costes administrativos y documentación justificativa de IKS eem según Decreto 183/2012, de 25 de septiembre (DSC, Documentos de Seguimiento y Control), así como otros certificados.",{"v":45,"d":"45.00 €"},{"v":4.5,"d":"4.5 €"}]
[49,{"v":0.8,"d":"0.80"},"Coste de gestión de Tn de Residuo con CÓDIGO LER 17.02.03 PLÁSTICO (Orden MAM/304/2002) tratada en planta por gestor autorizado por el Departamento de Medio Ambiente de la CAPV, de acuerdo con el Decreto 112/2012 de, 26 de junio, recogidas en contenedores de distintos formatos. Incluye costes administrativos y documentación justificativa de IKS eem según Decreto 183/2012, de 25 de septiembre (DSC, Documentos de Seguimiento y Control), así como otros certificados.",{"v":26,"d":"26.00 €"},{"v":20.8,"d":"20.8 €"}]
[50,{"v":0.1,"d":"0.10"},"Coste de gestión de Tn de Residuo con CÓDIGO LER 17.03.02 MEZCLAS BITUMINOSAS DISTINTAS DE LAS ESPECIFICADAS EN EL CÓDIGO 17.03.01. (< 10%) (Orden MAM/304/2002) tratada en planta por gestor autorizado por el Departamento de Medio Ambiente de la CAPV, de acuerdo con el Decreto 112/2012 de, 26 de junio, recogidas en contenedores de distintos formatos. Incluye costes administrativos y documentación justificativa de IKS eem según Decreto 183/2012, de 25 de septiembre (DSC, Documentos de Seguimiento y Control), así como otros certificados.",{"v":15,"d":"15.00 €"},{"v":1.5,"d":"1.5 €"}]
[51,0.12,"Coste de gestión de Tn de Residuo con CÓDIGO LER 17.04.07 METALES MEZCLADOS (Orden MAM/304/2002) tratada en planta por gestor autorizado por el Departamento de Medio Ambiente de la CAPV, de acuerdo con el Decreto 112/2012 de, 26 de junio, recogidas en contenedores de distintos formatos. Incluye costes administrativos y documentación justificativa de IKS eem según Decreto 183/2012, de 25 de septiembre (DSC, Documentos de Seguimiento y Control), así como otros certificados.",{"v":0,"d":"0.00 €"},{"v":0,"d":"0.0 €"}]
[52,0.25,"Coste de gestión de Tn de Residuo con CÓDIGO LER 17.05.04 TIERRAS Y ROCAS NO CONTAMINADAS (Orden MAM/304/2002) tratada en planta por gestor autorizado por el Departamento de Medio Ambiente de la CAPV, de acuerdo con el Decreto 112/2012 de, 26 de junio, recogidas en contenedores de distintos formatos. Incluye costes administrativos y documentación justificativa de IKS eem según Decreto 183/2012, de 25 de septiembre (DSC, Documentos de Seguimiento y Control), así como otros certificados.",{"v":8,"d":"8.00 €"},{"v":2,"d":"2.0 €"}]
[53,{"v":0.3,"d":"0.30"},"Coste de gestión de Tn de Residuo CÓDIGO LER 17.09.04 RESIDUOS MEZCLADOS DE CONSTRUCCIÓN Y DEMOLICIÓN DISTINTOS DE LOS ESPECIFICADOS EN LOS CÓDIGOS 17.09.02 Y 17.09.03 (Orden MAM/304/2002) tratada en planta por gestor autorizado por el Departamento de Medio Ambiente de la CAPV, de acuerdo con el Decreto 112/2012 de, 26 de junio, recogidas en contenedores de distintos formatos. Incluye costes administrativos y documentación justificativa de IKS eem según Decreto 183/2012, de 25 de septiembre (DSC, Documentos de Seguimiento y Control), así como otros certificados.",{"v":12,"d":"12.00 €"},{"v":3.5999999999999996,"d":"3.6 €"}]
[54,0.28,"Coste de gestión de Tn de Residuo con CÓDIGO LER 03.03.08 PAPEL-CARTÓN (Orden MAM/304/2002) tratada en planta por gestor autorizado por el Departamento de Medio Ambiente de la CAPV, de acuerdo con el Decreto 112/2012 de, 26 de junio, recogidas en contenedores de distintos formatos. Incluye costes administrativos y documentación justificativa de IKS eem según Decreto 183/2012, de 25 de septiembre (DSC, Documentos de Seguimiento y Control), así como otros certificados.",{"v":14,"d":"14.00 €"},{"v":3.9200000000000004,"d":"3.9 €"}]
[55,0.18,"Coste de gestión de Tn de Residuo LER 20.03.01 BASURAS GENERADAS POR LOS OPERARIOS  (Orden MAM/304/2002) tratada en planta por gestor autorizado por el Departamento de Medio Ambiente de la CAPV, de acuerdo con el Decreto 112/2012 de, 26 de junio, recogidas en contenedores de distintos formatos. Incluye costes administrativos y documentación justificativa de IKS eem según Decreto 183/2012, de 25 de septiembre (DSC, Documentos de Seguimiento y Control), así como otros certificados.",{"v":66,"d":"66.00 €"},{"v":11.879999999999999,"d":"11.9 €"}]
[56,{"v":0,"d":"0.00"},"Coste de gestión de Tn de Residuo con CÓDIGO LER 17.09.03* OTROS RESIDUOS DE CONSTRUCCIÓN Y DEMOLICIÓN (INCLUIDOS LOS RESIDUOS MEZCLADOS) QUE CONTIENEN SUSTANCIAS PELIGROSAS (Orden MAM/304/2002) tratada en planta por gestor autorizado por el Departamento de Medio Ambiente de la CAPV, de acuerdo con el Decreto 112/2012 de, 26 de junio, recogidas en contenedores de distintos formatos, propios para RP. Incluye costes administrativos y documentación justificativa de IKS eem según Decreto 183/2012, de 25 de septiembre (DCS, Documentos de Control y Seguimiento), así como otros certificados.",{"v":330,"d":"330.00 €"},{"v":0,"d":"0.0 €"}]
[57,{"v":0,"d":"0.00"},"Coste de gestión de Tn de Residuo con CÓDIGO LER 17.06.03* Y 17.06.05 MATERIALES DE CONSTRUCCIÓN QUE CONTIENEN AMIANTO (Orden MAM/304/2002) tratada en planta por gestor autorizado por el Departamento de Medio Ambiente de la CAPV, de acuerdo con el Decreto 112/2012 de, 26 de junio, recogidas en contenedores de distintos formatos, propios para RP. Incluye costes administrativos y documentación justificativa de IKS según Decreto 183/2012, de 25 de septiembre (DCS, Documentos de Control y Seguimiento), así como otros certificados.",{"v":330,"d":"330.00 €"},{"v":0,"d":"0.0 €"}]
[58,{"v":1,"d":"1.00"},"Ud de redación del Documento de Gestión de Residuos y su aprobación inicial. Recopilacion de los documentos DCS y DSC en su caso y elaboración del Informe Final de Gestión de Residuos. Implantación y gestión",{"v":350,"d":"350.00 €"},{"v":350,"d":"350.0 €"}]
[]
[null,null,"Total Capítulo 5",null,{"$f":"SUM(E45:E59)","v":{"v":522.5999999999999,"d":"522.6 €"}}]
[]
[]
["Capitulo 6.-Seguridad y Salud"]
[]
[59,{"v":1,"d":"1.00 €"},"Ud de implantación de medidas de seguridad y salud definidas en el Plan de Seguridad y Salud a realizar, incluso la propia redacción , tramitación de apertura del centro de trabajo, implantación de caseta vestuario,  WC, ... etc. Totalmente implantado",{"v":1650,"d":"1,650.00 €"},{"$f":"B65*D65","v":{"v":1650,"d":"1,650.00 €"}}]
[]
[null,null,"Total Capítulo 6",null,{"$f":"SUM(E64:E65)","v":{"v":1650,"d":"1,650.0 €"}}]
[]
[]
[null,null,"RESUMEN"]
[]
[]
[null,null,"Total Capítulo 1 Perforación e Inyección",null,{"$f":"E14","v":{"v":16494.6,"d":"16,494.60 €"}}]
[]
[null,null,"Total Capítulo 2 Instalación de Piezómetros",null,{"$f":"E24","v":{"v":12546.8,"d":"12,546.80 €"}}]
[]
[null,null,"Total Capítulo 3 Automatización Péndulo (direct+Inver)",null,{"$f":"E32","v":{"v":8524,"d":"8,524.00 €"}}]
[]
[null,null,"Total Capítulo 4 Instalación y puesta en marcha",null,{"$f":"E41","v":{"v":8303.2,"d":"8,303.20 €"}}]
[]
[null,null,"Total Capitulo 5 Gestión de Residuos",null,{"$f":"E60","v":{"v":522.5999999999999,"d":"522.60 €"}}]
[]
[null,null,"Total Capítulo 6 Seguridad y Salud",null,{"$f":"E67","v":{"v":1650,"d":"1,650.00 €"}}]
[]
[]
[null,null,"TOTAL PRESUPUESTO EJECUCION",null,{"$f":"SUM(E73:E84)","v":{"v":48041.19999999999,"d":"48,041.20 €"}}]
[]
[null,null,"IVA 21",null,{"$f":"E86*0.21","v":{"v":10088.651999999998,"d":"10,088.65 €"}}]
[]
[null,null,"TOTAL",null,{"$f":"E86+E88","v":{"v":58129.851999999984,"d":"58,129.85 €"}}]